fUSD/lending_fUSD_20250806
["ID","MTS","AMOUNT","RATE_DAILY","PERIOD"]
[377686349,1754490649807,-2775.28,0.0003863,14]
[377686350,1754490649817,-946.92,0.0003863,14]
[377686351,1754490649827,-2288.69,0.0003863,14]
[377686352,1754490649836,-1421.29,0.0003863,14]
[377686353,1754490649846,-400.0,0.0003863,14]
[377686354,1754490649856,-2293.27,0.0003863,14]
[377686355,1754490649866,-400.0,0.0003863,14]
[377686356,1754490649876,-400.0,0.0003863,14]
[377686357,1754490649886,-400.0,0.0003863,14]
[377686358,1754490649896,-2476.951057,0.0003863,14]
[377686359,1754490649906,-1221.85,0.0003863,14]
[377686360,1754490649916,-400.0,0.0003863,14]
[377686361,1754490649926,-2887.52,0.0003863,14]
[377686362,1754490649936,-1577.17,0.0003863,14]
[377686363,1754490650046,-1263.62,0.0003863,14]
[377686364,1754490650058,-567.87,0.0003863,14]
[377686365,1754490650068,-1047.5,0.0003863,14]
[377686366,1754490650077,-2022.64,0.0003863,14]
[377686367,1754490650087,-669.63,0.0003863,14]
[377686368,1754490650096,-252.12994462,0.0003863,14]
[377686369,1754490650106,-400.0,0.0003863,14]
[377686370,1754490650115,-1379.44,0.0003863,14]
[377686371,1754490650125,-2720.695633,0.0003863,14]
[377686372,1754490650134,-400.0,0.0003863,14]
[377686373,1754490650143,-400.0,0.0003863,14]
[377686374,1754490650153,-1476.06,0.0003863,14]
[377686375,1754490650162,-400.0,0.0003863,14]
[377686376,1754490650171,-1880.77,0.0003863,14]
[377686377,1754490650181,-1815.29,0.0003863,14]
[377686378,1754490650190,-400.0,0.0003863,120]
[377686379,1754490650200,-1186.03,0.0003863,14]
[377686380,1754490650209,-1627.82,0.0003863,14]
[377686381,1754490650218,-4270.31,0.0003863,14]
[377686382,1754490650228,-229.838941,0.0003863,14]
[377686383,1754490650237,-400.0,0.0003863,14]
[377686384,1754490650246,-2068.3,0.0003863,14]
[377686385,1754490650255,-1344.1,0.0003863,14]
[377686386,1754490650265,-400.0,0.0003863,14]
[377686387,1754490650274,-400.0,0.0003863,14]
[377686388,1754490650284,-319.1449888,0.0003863,14]
[377686389,1754490650293,-713.44,0.0003863,14]
[377686390,1754490650303,-400.0,0.0003863,14]
[377686391,1754490650314,-1966.23,0.0003863,14]
[377686392,1754490650323,-400.0,0.0003863,14]
[377686393,1754490650332,-400.0,0.0003863,14]
[377686394,1754490650341,-400.0,0.0003863,14]
[377686395,1754490650350,-2955.38,0.0003863,14]
[377686396,1754490650360,-1934.77,0.0003863,14]
[377686397,1754490650369,-400.0,0.0003863,14]
[377686398,1754490650378,-2168.71,0.0003863,14]
[377686399,1754490650387,-1426.72,0.0003863,14]
[377686400,1754490650396,-400.0,0.0003863,14]
[377686401,1754490650405,-400.0,0.0003863,14]
[377686402,1754490650415,-1099.2,0.0003863,14]
[377686403,1754490650424,-3137.86,0.0003863,14]
[377686404,1754490650433,-1858.72,0.0003863,14]
[377686405,1754490650442,-400.0,0.0003863,14]
[377686406,1754490650451,-1795.17466422,0.0003863,14]
[377686407,1754490650491,-1291.9127467,0.00038355,3]
[377686408,1754490651349,-807.12080875,0.00028995,3]
[377686410,1754490706574,746.0,0.0003013,120]
[377686415,1754490759734,931.0,0.0003013,120]
[377686419,1754490820384,400.0,0.00030136,120]
[377686421,1754490861060,2000.0,0.00023,30]
[377686450,1754491145991,156.68,0.00013699,2]
[377686501,1754491832231,-1000.0,0.00025,30]
[377686502,1754491832241,-160.36231305,0.000274,2]
[377686503,1754491832251,-1000.0,0.000275,4]
[377686504,1754491832260,-1080.87919125,0.00028995,3]
[377686505,1754491832270,-151.13,0.00029969,2]
[377686506,1754491832280,-2000.0,0.0003,30]
[377686507,1754491832290,-1077.49,0.0003,2]
[377686508,1754491832299,-841.59890878,0.00031735,3]
[377686509,1754491832309,-151.13,0.00032958,2]
[377686510,1754491832320,-512.0,0.00033331,2]
[377686511,1754491832329,-150.99,0.00033844,2]
[377686512,1754491832339,-200.0,0.000346,2]
[377686513,1754491832348,-150.0,0.00034767,2]
[377686514,1754491832357,-152.0,0.00034887,3]
[377686515,1754491832367,-435.38973864,0.0003497,2]
[377686516,1754491832376,-199.999999,0.00035,120]
[377686517,1754491832385,-1800.0,0.00035,36]
[377686518,1754491832394,-510.64228605,0.00035173,2]
[377686519,1754491832403,-150.0,0.0003526,4]
[377686521,1754491832414,-150.0,0.0003526,4]
[377686522,1754491832423,-150.0,0.0003526,4]
[377686523,1754491832432,-5149.09,0.00035322,2]
[377686524,1754491832442,-1708.63,0.00035324,2]
[377686525,1754491832451,-666.0,0.00035335,3]
[377686526,1754491832461,-150.0,0.00035366,2]
[377686527,1754491832471,-300.0,0.00035373,73]
[377686528,1754491832481,-4997.45,0.00035375,2]
[377686529,1754491832490,-585.89483347,0.00035375,2]
[377686530,1754491832499,-200.0,0.0003538,2]
[377686531,1754491832509,-2665.04,0.0003543,2]
[377686532,1754491832519,-5332.12681632,0.00035448,2]
[377686533,1754491832552,-374.65318368,0.00035448,2]
[377686534,1754491832562,-2920.46493612,0.00035448,2]
[377686535,1754491832574,-548.10506388,0.00035448,2]
[377686536,1754491832584,-175.0,0.00035464,7]
[377686537,1754491832593,-179.01,0.00035485,2]
[377686538,1754491832606,-197.56,0.00035485,2]
[377686539,1754491832615,-186.605,0.00035485,42]
[377686540,1754491832625,-457.43778519,0.00035493,2]
[377686541,1754491832635,-211.52696026,0.00035493,2]
[377686542,1754491832644,-220.88,0.00035499,2]
[377686543,1754491832655,-65.90017817,0.0003554,120]
[377686544,1754491832686,-128.93982183,0.0003554,120]
[377686545,1754491832695,-768.77,0.0003554,2]
[377686546,1754491832704,-219.51038318,0.00035578,2]
[377686560,1754491832825,-101.47565729,0.00035578,2]
[377686563,1754491832837,-340.16134042,0.00035578,2]
[377686565,1754491832846,-1000.0,0.00035645,2]
[377686566,1754491832855,-500.0,0.00035725,2]
[377686567,1754491832865,-2504.33,0.00035763,2]
[377686568,1754491832875,-736.39992831,0.00035781,2]
[377686569,1754491832884,-161.0,0.0003589,30]
[377686570,1754491832894,-196.26,0.00035915,30]
[377686571,1754491832903,-179.9,0.00035926,2]
[377686572,1754491832912,-1500.0,0.00035926,120]
[377686573,1754491832922,-179.9,0.00035945,2]
[377686574,1754491832932,-151.13,0.00035946,2]
[377686575,1754491832941,-179.9,0.00035964,2]
[377686576,1754491832950,-179.9,0.00035983,2]
[377686577,1754491832960,-811.65247573,0.00035984,2]
[377686578,1754491832973,-161.0,0.00036,30]
[377686579,1754491832982,-179.9,0.00036002,2]
[377686580,1754491832991,-179.9,0.00036021,2]
[377686581,1754491833001,-179.9,0.0003604,2]
[377686582,1754491833010,-179.9,0.00036059,2]
[377686583,1754491833019,-179.9,0.00036078,2]
[377686584,1754491833030,-190.12,0.00036088,2]
[377686585,1754491833039,-179.9,0.00036096,2]
[377686586,1754491833049,-179.9,0.00036115,2]
[377686587,1754491833058,-179.9,0.00036134,2]
[377686588,1754491833069,-179.9,0.00036153,2]
[377686589,1754491833078,-200.0,0.0003617,2]
[377686590,1754491833088,-179.9,0.00036172,2]
[377686591,1754491833098,-886.90502315,0.00036187,2]
[377686592,1754491833108,-179.9,0.00036191,2]
[377686593,1754491833118,-179.9,0.0003621,2]
[377686594,1754491833128,-179.9,0.00036229,2]
[377686595,1754491833138,-179.9,0.00036248,2]
[377686596,1754491833148,-179.9,0.00036267,2]
[377686597,1754491833158,-179.9,0.00036286,2]
[377686598,1754491833167,-962.15757057,0.00036389,2]
[377686599,1754491833177,-1037.41011798,0.00036592,2]
[377686600,1754491833187,-1112.6626654,0.00036795,2]
[377686601,1754491833196,-3362.0,0.00036841,2]
[377686602,1754491833206,-156.946,0.00036841,2]
[377686603,1754491833216,-955.0,0.00036841,2]
[377686604,1754491833226,-809.0,0.00036841,2]
[377686605,1754491833236,-1240.903,0.00036841,2]
[377686606,1754491833245,-1293.0,0.00036841,2]
[377686607,1754491833255,-958.0,0.00036841,2]
[377686608,1754491833264,-597.0,0.00036841,2]
[377686609,1754491833274,-447.586,0.00036841,2]
[377686610,1754491833284,-864.0,0.00036841,2]
[377686611,1754491833294,-4503.38040558,0.00036841,2]
[377686612,1754491833306,-384.42606901,0.00036841,2]
[377686613,1754491838126,-1888.0,0.000279,3]
[377686614,1754491838136,-1311.048,0.0003014,3]
[377686615,1754491838184,-2464.952,0.0003014,3]
[377686616,1754491838194,-1182.19352541,0.00036841,2]
[377686617,1754491838204,-605.85,0.00036868,30]
[377686618,1754491838214,-200.0,0.0003695,2]
[377686619,1754491838224,-500.0,0.00036995,15]
[377686620,1754491838234,-165.62248577,0.00036995,15]
[377686621,1754491838244,-500.0,0.00036995,15]
[377686622,1754491838254,-500.0,0.00036995,15]
[377686623,1754491838264,-500.0,0.00036995,15]
[377686624,1754491838274,-237.19094233,0.00036995,15]
[377686625,1754491838284,-288.35,0.00036996,2]
[377686626,1754491838472,-1187.91521282,0.00036998,2]
[377686627,1754491838484,-674.23,0.000371,2]
[377686628,1754491838493,-1263.16776024,0.00037201,2]
[377686629,1754491838503,-150.0,0.00037219,7]
[377686630,1754491838513,-500.0,0.00037259,7]
[377686631,1754491838522,-500.0,0.00037259,7]
[377686632,1754491838531,-1888.0,0.00037341,3]
[377686633,1754491838540,-161.0,0.00037397,30]
[377686634,1754491838549,-1338.42030766,0.00037403,2]
[377686636,1754491838559,-593.95,0.00037543,30]
[377686638,1754491838568,-1413.67285508,0.00037606,2]
[377686640,1754491838578,-200.0,0.0003774,2]
[377686642,1754491838588,-700.0,0.000378,13]
[377686644,1754491838597,-1488.9254025,0.00037809,2]
[377686646,1754491838608,-1500.0,0.000379,13]
[377686648,1754491838618,-1564.17794991,0.00038012,2]
[377686651,1754491838627,-172.99,0.00038059,2]
[377686654,1754491838636,-165.49,0.00038059,2]
[377686657,1754491838646,-359.31,0.00038059,2]
[377686660,1754491838655,-345.36,0.00038059,2]
[377686662,1754491838664,-302.15,0.00038059,2]
[377686664,1754491838673,-359.31,0.00038059,2]
[377686666,1754491838683,-301.25,0.00038068,2]
[377686668,1754491838692,-500.0,0.00038081,7]
[377686670,1754491838702,-1639.43049733,0.00038215,2]
[377686672,1754491838711,-1992.40693361,0.00038249,2]
[377686674,1754491838720,-175.45787696,0.00038249,2]
[377686676,1754491838730,-650.20878153,0.0003825,2]
[377686678,1754491838739,-543.39826139,0.00038256,2]
[377686680,1754491838748,-549.04,0.00038345,5]
[377686683,1754491838758,-28228.84328391,0.00038346,4]
[377686897,1754491840433,-592.75,0.000284,3]
[377686900,1754491840445,-942.76590804,0.000284,3]
[377686904,1754491840479,-352.48409196,0.000284,3]
[377686906,1754491840488,-3776.0,0.0003064,3]
[377686908,1754491840497,-3792.239,0.00036841,2]
[377686910,1754491840507,-162996.44666409,0.00038346,4]
[377686912,1754491840517,-218.49445258,0.00038346,2]
[377686914,1754491840527,-165.98512957,0.00038349,15]
[377686916,1754491840536,-500.0,0.00038349,15]
[377686918,1754491840545,-186.13845406,0.00038349,15]
[377686920,1754491840555,-596.0872533,0.00038355,3]
[377686922,1754491840565,-192.99,0.00038355,2]
[377686924,1754491840575,-1992.40693358,0.00038355,2]
[377686926,1754491840585,-156.0,0.00038356,5]
[377686929,1754491840595,-400.0,0.00038356,14]
[377686931,1754491840604,-203.83347808,0.00038356,14]
[377686932,1754491840615,-400.0,0.00038356,14]
[377686935,1754491840624,-400.0,0.00038356,14]
[377686937,1754491840634,-400.0,0.00038356,14]
[377686940,1754491840644,-400.0,0.00038356,14]
[377686942,1754491840654,-400.0,0.00038356,14]
[377686945,1754491840663,-400.0,0.00038356,14]
[377686947,1754491840673,-400.0,0.00038356,14]
[377686949,1754491840684,-400.0,0.00038356,14]
[377686952,1754491840694,-400.0,0.00038356,14]
[377686953,1754491840704,-400.0,0.00038356,14]
[377686954,1754491840712,-400.0,0.00038356,14]
[377686955,1754491840722,-400.0,0.00038356,2]
[377686956,1754491840731,-400.0,0.00038356,14]
[377686957,1754491840740,-400.0,0.00038356,14]
[377686958,1754491840749,-459.79677114,0.00038356,14]
[377686959,1754491840758,-400.0,0.00038356,14]
[377686960,1754491840767,-400.0,0.00038356,14]
[377686961,1754491840776,-400.0,0.00038356,14]
[377686962,1754491840785,-400.0,0.00038356,14]
[377686963,1754491840794,-400.0,0.00038356,14]
[377686964,1754491840804,-400.0,0.00038356,14]
[377686965,1754491840813,-696.08,0.00038356,14]
[377686967,1754491840824,-400.0,0.00038356,14]
[377686969,1754491840833,-400.0,0.00038356,14]
[377686971,1754491840844,-468.96,0.00038356,14]
[377686973,1754491840853,-803.47,0.00038356,14]
[377686975,1754491840862,-400.0,0.00038356,14]
[377686977,1754491840872,-400.0,0.00038356,14]
[377686979,1754491840881,-400.0,0.00038356,14]
[377686981,1754491840893,-400.0,0.00038356,14]
[377686983,1754491840902,-400.0,0.00038356,14]
[377686985,1754491840912,-2493.970996,0.00038356,14]
[377686987,1754491840921,-2270.538469,0.00038356,14]
[377686989,1754491840931,-941.66,0.00038356,14]
[377686991,1754491840940,-958.74,0.00038356,14]
[377687034,1754491841347,-805.05,0.00038356,14]
[377687036,1754491841358,-400.0,0.00038356,14]
[377687038,1754491841368,-577.92,0.00038356,14]
[377687040,1754491841377,-472.2,0.00038356,14]
[377687042,1754491841387,-400.0,0.00038356,14]
[377687044,1754491841398,-400.0,0.00038356,14]
[377687046,1754491841410,-400.0,0.00038356,14]
[377687048,1754491841419,-885.52,0.00038356,14]
[377687050,1754491841429,-400.0,0.00038356,14]
[377687051,1754491841438,-400.0,0.00038356,14]
[377687053,1754491841448,-810.47,0.00038356,14]
[377687055,1754491841458,-167.753514,0.00038356,14]
[377687057,1754491841468,-780.4,0.00038356,14]
[377687059,1754491841477,-210.685696,0.00038356,14]
[377687061,1754491841487,-600.23,0.00038356,14]
[377687063,1754491841497,-1883.55,0.00038356,14]
[377687065,1754491841507,-1481.24,0.00038356,14]
[377687067,1754491841517,-400.0,0.00038356,14]
[377687069,1754491841527,-1608.71,0.00038356,14]
[377687071,1754491841536,-430.92,0.00038356,14]
[377687073,1754491841547,-1125.7,0.00038356,14]
[377687074,1754491841556,-400.0,0.00038356,14]
[377687077,1754491841566,-973.49,0.00038356,14]
[377687078,1754491841576,-826.07,0.00038356,14]
[377687081,1754491841586,-894.079041,0.00038356,14]
[377687082,1754491841596,-424.34,0.00038356,14]
[377687084,1754491841607,-400.0,0.00038356,14]
[377687086,1754491841617,-400.0,0.00038356,14]
[377687088,1754491841626,-400.0,0.00038356,14]
[377687090,1754491841636,-511.17,0.00038356,14]
[377687092,1754491841646,-400.0,0.00038356,14]
[377687095,1754491841657,-1017.34,0.00038356,14]
[377687097,1754491841667,-400.0,0.00038356,14]
[377687099,1754491841677,-744.31,0.00038356,14]
[377687100,1754491841686,-400.0,0.00038356,14]
[377687102,1754491841695,-400.0,0.00038356,14]
[377687104,1754491841705,-400.0,0.00038356,14]
[377687107,1754491841715,-400.0,0.00038356,14]
[377687108,1754491841725,-1871.62,0.00038356,14]
[377687110,1754491841735,-430.41,0.00038356,14]
[377687112,1754491841746,-400.0,0.00038356,14]
[377687114,1754491841757,-1272.79,0.00038356,14]
[377687116,1754491841767,-1301.62,0.00038356,14]
[377687118,1754491841777,-400.0,0.00038356,14]
[377687120,1754491841787,-668.6,0.00038356,14]
[377687122,1754491841798,-400.0,0.00038356,14]
[377687124,1754491841809,-400.0,0.00038356,14]
[377687126,1754491841819,-400.0,0.00038356,14]
[377687128,1754491841833,-1507.38,0.00038356,14]
[377687131,1754491841853,-1279.77,0.00038356,14]
[377687134,1754491841866,-968.69,0.00038356,14]
[377687136,1754491841877,-400.0,0.00038356,14]
[377687138,1754491841888,-428.02,0.00038356,14]
[377687140,1754491841898,-1018.29,0.00038356,14]
[377687142,1754491841908,-1000.0,0.00038356,120]
[377687144,1754491841919,-400.0,0.00038356,14]
[377687146,1754491841929,-1601.69,0.00038356,14]
[377687148,1754491841939,-400.0,0.00038356,14]
[377687150,1754491841950,-400.0,0.00038356,14]
[377687152,1754491841961,-400.0,0.00038356,14]
[377687154,1754491841977,-400.0,0.00038356,14]
[377687156,1754491841987,-402.51547337,0.00038356,14]
[377687159,1754491841998,-400.0,0.00038356,14]
[377687160,1754491842008,-400.0,0.00038356,14]
[377687163,1754491842018,-550.3,0.00038356,14]
[377687164,1754491842028,-1859.55,0.00038356,14]
[377687167,1754491842039,-589.03,0.00038356,14]
[377687169,1754491842051,-400.0,0.00038356,14]
[377687170,1754491842061,-400.0,0.00038356,14]
[377687172,1754491842071,-400.0,0.00038356,14]
[377687174,1754491842083,-1189.5,0.00038356,14]
[377687176,1754491842093,-1035.28,0.00038356,14]
[377687178,1754491842103,-400.0,0.00038356,14]
[377687180,1754491842113,-401.2411722,0.00038356,14]
[377687182,1754491842123,-604.96,0.00038356,14]
[377687184,1754491842134,-583.61,0.00038356,14]
[377687186,1754491842144,-400.0,0.00038356,14]
[377687188,1754491842154,-400.0,0.00038356,14]
[377687190,1754491842164,-443.51913575,0.00038356,14]
[377687192,1754491842174,-613.32,0.00038356,14]
[377687194,1754491842183,-400.0,0.00038356,14]
[377687196,1754491842194,-400.0,0.00038356,14]
[377687198,1754491842204,-532.24,0.00038356,14]
[377687200,1754491842214,-423.93,0.00038356,14]
[377687202,1754491842224,-1038.94,0.00038356,14]
[377687204,1754491842234,-1432.26,0.00038356,14]
[377687206,1754491842244,-808.47,0.00038356,14]
[377687208,1754491842255,-552.61,0.00038356,14]
[377687210,1754491842265,-400.0,0.00038356,14]
[377687212,1754491842275,-537.04,0.00038356,14]
[377687214,1754491842284,-400.0,0.00038356,14]
[377687216,1754491842294,-509.53,0.00038356,14]
[377687218,1754491842304,-463.15,0.00038356,14]
[377687220,1754491842315,-400.0,0.00038356,14]
[377687222,1754491842325,-400.0,0.00038356,14]
[377687224,1754491842334,-400.0,0.00038356,14]
[377687226,1754491842344,-400.0,0.00038356,14]
[377687228,1754491842354,-519.45180948,0.00038356,14]
[377687230,1754491842364,-400.0,0.00038356,14]
[377687232,1754491842374,-400.0,0.00038356,14]
[377687234,1754491842383,-400.0,0.00038356,14]
[377687236,1754491842393,-400.0,0.00038356,14]
[377687238,1754491842403,-400.0,0.00038356,14]
[377687240,1754491842414,-411.88,0.00038356,14]
[377687242,1754491842424,-1162.46,0.00038356,14]
[377687244,1754491842434,-904.34,0.00038356,14]
[377687246,1754491842444,-400.0,0.00038356,14]
[377687248,1754491842454,-1563.04,0.00038356,14]
[377687250,1754491842463,-1985.97,0.00038356,14]
[377687252,1754491842473,-822.55,0.00038356,14]
[377687254,1754491842483,-400.0,0.00038356,14]
[377687256,1754491842492,-787.61,0.00038356,14]
[377687258,1754491842502,-400.0,0.00038356,14]
[377687260,1754491842512,-400.0,0.00038356,14]
[377687262,1754491842522,-1948.58,0.00038356,14]
[377687264,1754491842532,-766.76,0.00038356,14]
[377687266,1754491842544,-298.70395725,0.00038356,14]
[377687268,1754491842554,-400.0,0.00038356,14]
[377687270,1754491842563,-534.74,0.00038356,14]
[377687273,1754491842573,-400.0,0.00038356,14]
[377687275,1754491842585,-400.0,0.00038356,14]
[377687277,1754491842595,-1195.97,0.00038356,14]
[377687278,1754491842604,-400.0,0.00038356,14]
[377687280,1754491842616,-489.12,0.00038356,14]
[377687283,1754491842626,-400.0,0.00038356,14]
[377687284,1754491842637,-799.33,0.00038356,14]
[377687286,1754491842647,-1226.83,0.00038356,14]
[377687288,1754491842657,-2413.78,0.00038356,14]
[377687290,1754491842667,-859.9,0.00038356,14]
[377687292,1754491842679,-400.0,0.00038356,14]
[377687294,1754491842689,-761.12,0.00038356,14]
[377687297,1754491842699,-1605.83,0.00038356,14]
[377687298,1754491842709,-2420.07,0.00038356,14]
[377687301,1754491842719,-400.0,0.00038356,14]
[377687302,1754491842730,-400.0,0.00038356,14]
[377687305,1754491842741,-400.0,0.00038356,14]
[377687307,1754491842752,-400.0,0.00038356,14]
[377687309,1754491842761,-873.39,0.00038356,14]
[377687311,1754491842770,-1418.8,0.00038356,14]
[377687313,1754491842780,-1005.21,0.00038356,14]
[377687314,1754491842790,-1621.48,0.00038356,14]
[377687317,1754491842799,-1645.23,0.00038356,14]
[377687319,1754491842809,-400.0,0.00038356,14]
[377687321,1754491842819,-808.12,0.00038356,14]
[377687323,1754491842829,-400.0,0.00038356,14]
[377687325,1754491842839,-462.16990718,0.00038356,14]
[377687328,1754491842863,-1125.28009282,0.00038356,14]
[377687330,1754491842872,-144.38588513,0.00038356,14]
[377687333,1754491842888,-376.02742901,0.00038356,14]
[377687335,1754491842900,-910.18668586,0.00038356,14]
[377687337,1754491842909,-400.0,0.00038356,14]
[377687339,1754491842919,-626.03,0.00038356,14]
[377687341,1754491842928,-400.0,0.00038356,14]
[377687343,1754491842937,-400.0,0.00038356,14]
[377687345,1754491842947,-546.54,0.00038356,14]
[377687348,1754491842956,-174.08750632,0.00038356,14]
[377687703,1754491846369,-1888.0,0.000289,3]
[377687705,1754491846380,-3776.0,0.0003114,3]
[377687707,1754491846389,-1675.99249368,0.00038356,14]
[377687709,1754491846399,-400.0,0.00038356,14]
[377687711,1754491846408,-400.0,0.00038356,14]
[377687713,1754491846418,-1805.04,0.00038356,14]
[377687715,1754491846429,-480.97,0.00038356,14]
[377687717,1754491846438,-2127.47,0.00038356,14]
[377687719,1754491846448,-1895.91,0.00038356,14]
[377687721,1754491846458,-1017.85,0.00038356,14]
[377687723,1754491846468,-400.0,0.00038356,14]
[377687725,1754491846477,-400.0,0.00038356,14]
[377687727,1754491846487,-479.03,0.00038356,14]
[377687729,1754491846497,-522.48,0.00038356,14]
[377687731,1754491846506,-400.0,0.00038356,14]
[377687733,1754491846516,-2133.4,0.00038356,14]
[377687735,1754491846526,-400.0,0.00038356,14]
[377687737,1754491846536,-2100.41,0.00038356,14]
[377687739,1754491846547,-778.99,0.00038356,14]
[377687741,1754491846556,-400.0,0.00038356,14]
[377687743,1754491846566,-1558.48,0.00038356,14]
[377687745,1754491846576,-400.0,0.00038356,14]
[377687747,1754491846588,-400.0,0.00038356,14]
[377687749,1754491846598,-400.0,0.00038356,14]
[377687751,1754491846609,-1755.79,0.00038356,14]
[377687753,1754491846619,-400.0,0.00038356,14]
[377687755,1754491846629,-2358.5,0.00038356,14]
[377687757,1754491846638,-400.0,0.00038356,14]
[377687759,1754491846647,-400.0,0.00038356,14]
[377687761,1754491846657,-708.55,0.00038356,14]
[377687763,1754491846666,-1901.38,0.00038356,14]
[377687765,1754491846675,-999.86,0.00038356,14]
[377687767,1754491846685,-400.0,0.00038356,14]
[377687769,1754491846695,-855.25,0.00038356,14]
[377687771,1754491846704,-1019.53,0.00038356,14]
[377687773,1754491846714,-990.63,0.00038356,14]
[377687775,1754491846723,-1320.61,0.00038356,14]
[377687777,1754491846733,-1770.24,0.00038356,14]
[377687779,1754491846743,-455.65,0.00038356,14]
[377687781,1754491846752,-512.52,0.00038356,14]
[377687783,1754491846763,-400.0,0.00038356,14]
[377687785,1754491846773,-400.0,0.00038356,14]
[377687787,1754491846786,-612.75,0.00038356,14]
[377687790,1754491846801,-236.17348991,0.00038356,14]
[377687793,1754491846819,-2251.88,0.00038356,14]
[377687795,1754491846836,-400.0,0.00038356,14]
[377687797,1754491846847,-400.0,0.00038356,14]
[377687800,1754491846861,-643.13,0.00038356,14]
[377687802,1754491846875,-400.0,0.00038356,14]
[377687805,1754491846888,-400.0,0.00038356,14]
[377687807,1754491846901,-400.0,0.00038356,14]
[377687809,1754491846915,-400.0,0.00038356,14]
[377687812,1754491846930,-1397.79,0.00038356,14]
[377687814,1754491846945,-870.44,0.00038356,14]
[377687817,1754491846957,-492.37,0.00038356,14]
[377687819,1754491846973,-2109.08,0.00038356,14]
[377687821,1754491846986,-2420.85,0.00038356,14]
[377687824,1754491846999,-654.54,0.00038356,14]
[377687826,1754491847014,-2658.45,0.00038356,14]
[377687829,1754491847027,-553.87,0.00038356,14]
[377687831,1754491847041,-2698.72,0.00038356,14]
[377687833,1754491847055,-400.0,0.00038356,14]
[377687836,1754491847069,-400.0,0.00038356,14]
[377687838,1754491847086,-400.0,0.00038356,14]
[377687841,1754491847099,-400.0,0.00038356,14]
[377687843,1754491847113,-405.53,0.00038356,14]
[377687845,1754491847127,-528.21,0.00038356,14]
[377687848,1754491847139,-1390.74,0.00038356,14]
[377687850,1754491847154,-1680.23,0.00038356,14]
[377687852,1754491847167,-400.0,0.00038356,14]
[377687855,1754491847180,-1376.64,0.00038356,14]
[377687857,1754491847194,-1981.99,0.00038356,14]
[377687859,1754491847205,-400.0,0.00038356,14]
[377687861,1754491847217,-1444.58,0.00038356,14]
[377687864,1754491847228,-400.0,0.00038356,14]
[377687866,1754491847243,-632.55,0.00038356,14]
[377687868,1754491847256,-426.91767596,0.00038356,14]
[377687871,1754491847267,-2518.28,0.00038356,14]
[377687873,1754491847278,-892.53,0.00038356,14]
[377687875,1754491847290,-2018.95,0.00038356,14]
[377687877,1754491847303,-400.0,0.00038356,14]
[377687880,1754491847322,-3057.46,0.00038356,14]
[377687882,1754491847339,-400.0,0.00038356,14]
[377687885,1754491847353,-2010.48,0.00038356,14]
[377687887,1754491847364,-810.98,0.00038356,14]
[377687889,1754491847376,-2112.41,0.00038356,14]
[377687891,1754491847387,-2097.97,0.00038356,14]
[377687894,1754491847401,-400.0,0.00038356,14]
[377687896,1754491847414,-2426.1,0.00038356,14]